bitfinex-derivatives/quotes_SOLF0:USTF0_20250404
["timestamp","ask_amount","ask_price","bid_price","bid_amount"]
[1743753837386,0.06378657,118.59,118.57,32.28]
[1743753838685,0.06378657,118.59,118.58,8.4354]
[1743753840790,0.06378657,118.59,118.57,40.7158]
[1743753841290,0.06378657,118.59,118.56,0.0561802]
[1743753841490,0.06378657,118.59,118.56,32.2361802]
[1743753841890,0.06378657,118.59,118.56,0.0561802]
[1743753843092,32.24378657,118.59,118.56,0.0561802]
[1743753843287,2.2095,118.58,118.56,0.0561802]
[1743753843494,8.4361,118.57,118.56,0.0561802]
[1743753844793,8.4385,118.54,118.52,32.14]
[1743753844989,2.1839,118.57,118.5,23.63325821]
[1743753845196,32.16,118.56,118.48,23.63325821]
[1743753845389,32.16,118.56,118.48,40.6023]
[1743753845684,55.79325821,118.56,118.48,32.16]
[1743753845887,55.79325821,118.56,118.46,842.21835899]
[1743753846093,8.4414,118.5,118.47,32.16]
[1743753846484,8.49736065,118.5,118.47,32.2136778]
[1743753846986,0.05586065,118.5,118.47,0.0536778]
[1743753847386,8.4426,118.48,118.47,0.0536778]
[1743753847586,32.21586065,118.5,118.43,8.4458]
[1743753847792,32.16,118.5,118.43,8.4458]
[1743753847985,8.444,118.46,118.43,8.4458]
[1743753848193,8.444,118.46,118.42,811.0727239]
[1743753848390,8.4447,118.45,118.43,32.14]
[1743753848794,8.50530491,118.45,118.43,32.19595968]
[1743753849194,8.4454,118.44,118.43,32.19595968]
[1743753849697,8.50590491,118.45,118.43,32.19595968]
[1743753849895,0.06060491,118.45,118.43,32.19595968]
[1743753850594,0.06060491,118.45,118.43,0.05595968]
[1743753850796,8.50570491,118.45,118.43,0.05595968]
[1743753851797,0.06060491,118.45,118.43,0.05595968]
[1743753852389,6.5673,118.52,118.44,23.63325821]
[1743753852593,6.5673,118.52,118.45,40.6044]
[1743753852788,8.4422,118.49,118.45,32.16]
[1743753853000,6.5673,118.52,118.45,32.16]
[1743753853300,8.4424,118.49,118.45,40.6043]
[1743753853502,0.06173859,118.48,118.46,0.05363585]
[1743753853797,0.06173859,118.48,118.46,8.49713585]
[1743753854100,0.06173859,118.48,118.46,0.05363585]
[1743753854502,8.50493859,118.48,118.46,0.05363585]
[1743753854804,0.06173859,118.48,118.46,0.05363585]
[1743753855205,8.4433,118.47,118.46,0.05363585]
[1743753856197,0.06173859,118.48,118.46,0.05363585]
[1743753856701,8.4433,118.47,118.46,0.05363585]
[1743753857510,0.06173859,118.48,118.46,0.05363585]
[1743753858209,8.4433,118.47,118.46,0.05363585]
[1743753859002,8.4457,118.44,118.41,40.5874]
[1743753859204,8.4457,118.44,118.41,8.4474]
[1743753859404,55.71325821,118.5,118.41,32.14]
[1743753859603,8.4459,118.44,118.41,32.14]
[1743753859797,55.71325821,118.5,118.41,32.14]
[1743753860000,8.4472,118.42,118.39,8.4486]
[1743753860204,32.12,118.46,118.44,0.06500636]
[1743753860502,8.4468,118.42,118.4,8.4482]
[1743753860706,8.4468,118.42,118.39,32.12]
[1743753860907,2.3151,118.45,118.39,32.12]
[1743753861111,8.4471,118.42,118.39,40.5685]
[1743753861504,8.51077221,118.42,118.39,40.6317263]
[1743753861702,0.06367221,118.42,118.39,0.0632263]
[1743753862202,8.4483,118.4,118.39,0.0632263]
[1743753863803,32.1,118.4,118.31,23.63325821]
[1743753864002,2.3625,118.39,118.3,23.63325821]
[1743753864204,2.3625,118.39,118.3,55.73325821]
[1743753864399,8.4516,118.36,118.32,8.4536]
[1743753864809,32.1,118.37,118.32,8.4536]
[1743753865008,0.05358323,118.35,118.33,0.05990915]
[1743753865606,8.50578323,118.35,118.33,0.05990915]
[1743753866412,0.05358323,118.35,118.33,0.05990915]
[1743753867511,8.4525,118.34,118.33,0.05990915]
[1743753868407,8.50578323,118.35,118.33,0.05990915]
[1743753868708,0.05358323,118.35,118.33,0.05990915]
[1743753869212,8.50578323,118.35,118.33,0.05990915]
[1743753870912,0.05358323,118.35,118.33,0.05990915]
[1743753871313,0.05358323,118.35,118.33,32.03990915]
[1743753871913,8.50538323,118.35,118.33,32.03990915]
[1743753872115,0.05358323,118.35,118.33,40.49310915]
[1743753873214,0.05358323,118.35,118.34,8.4525]
[1743753875616,0.05358323,118.35,118.33,40.49280915]
[1743753876115,8.4525,118.34,118.33,0.05990915]
[1743753876316,0.05358323,118.35,118.33,0.05990915]
[1743753876718,8.50568323,118.35,118.33,0.05990915]
[1743753877112,0.05358323,118.35,118.33,0.05990915]
[1743753877312,0.05358323,118.35,118.34,8.4525]
[1743753877513,0.05358323,118.35,118.33,0.05990915]
[1743753877809,0.05358323,118.35,118.34,8.4525]
[1743753882019,0.05358323,118.35,118.33,0.05990915]
[1743753882523,8.50568323,118.35,118.33,0.05990915]
[1743753883021,0.05358323,118.35,118.33,0.05990915]
[1743753883721,0.05358323,118.35,118.34,8.4525]
[1743753885429,8.50548323,118.35,118.33,8.51280915]
[1743753885629,0.05358323,118.35,118.33,8.51280915]
[1743753886032,0.05358323,118.35,118.34,8.4525]
[1743753886425,2.3625,118.39,118.33,0.05990915]
[1743753886628,8.45,118.38,118.33,0.05990915]
[1743753886830,2.3625,118.39,118.33,0.05990915]
[1743753887030,10.8118,118.39,118.33,0.05990915]
[1743753887333,2.3625,118.39,118.33,0.05990915]
[1743753887533,0.05567545,118.37,118.35,8.4516]
[1743753887734,0.05567545,118.37,118.35,32.08]
[1743753887934,0.05567545,118.37,118.35,32.14498157]
[1743753888137,8.50637545,118.37,118.35,32.14498157]
[1743753888637,0.05567545,118.37,118.35,40.59678157]
[1743753888833,0.05567545,118.37,118.35,32.14498157]
[1743753889829,8.4511,118.36,118.35,0.06498157]
[1743753891434,0.05567545,118.37,118.35,0.06498157]
[1743753891834,8.4511,118.36,118.35,0.06498157]
[1743753892837,8.50647545,118.37,118.35,0.06498157]
[1743753893738,0.05567545,118.37,118.35,0.06498157]
[1743753894127,0.05567545,118.37,118.35,8.51658157]
[1743753894834,8.50627545,118.37,118.35,8.51658157]
[1743753895039,0.05567545,118.37,118.35,0.06498157]
[1743753895533,0.05567545,118.37,118.35,8.51628157]
[1743753897038,0.05567545,118.37,118.36,8.4511]
[1743753897238,0.05567545,118.37,118.35,0.06498157]
[1743753897639,0.05567545,118.37,118.35,8.51628157]
[1743753899039,0.05567545,118.37,118.36,8.4511]
[1743753899939,0.05567545,118.37,118.35,0.06498157]
[1743753899940,0.05567545,118.37,118.35,8.51648157]
[1743753900138,0.05567545,118.37,118.35,0.06498157]
[1743753900731,8.4511,118.36,118.35,0.06498157]
[1743753900936,2.3342,118.36,118.32,284.9062239]
[1743753901135,8.4522,118.35,118.32,284.9062239]
[1743753901334,2.3342,118.36,118.32,284.9062239]
[1743753901541,2.3342,118.36,118.31,325.3006239]
[1743753901735,8.4526,118.34,118.31,325.3006239]
[1743753901942,8.4526,118.34,118.32,0.0568556]
[1743753902243,8.51372753,118.34,118.32,0.0568556]
[1743753902737,0.06112753,118.34,118.32,0.0568556]
[1743753903143,8.51402753,118.34,118.32,0.0568556]
[1743753904442,0.06112753,118.34,118.32,8.5106556]
[1743753904743,0.06112753,118.34,118.32,14.85384587]
[1743753905144,0.06112753,118.34,118.33,8.4533]
[1743753905339,2.2472,118.4,118.32,14.85384587]
[1743753905541,8.4515,118.36,118.33,8.4529]
[1743753905742,46.67699027,118.39,118.32,14.79699027]
[1743753905937,48.95979027,118.39,118.32,14.79699027]
[1743753906137,8.4522,118.35,118.32,23.25069027]
[1743753906339,0.05351131,118.37,118.34,0.0646435]
[1743753906844,8.4515,118.36,118.34,0.0646435]
[1743753907037,0.05351131,118.37,118.34,0.0646435]
[1743753907237,8.50431131,118.37,118.34,8.5166435]
[1743753907442,0.05351131,118.37,118.34,31.9046435]
[1743753907846,0.05351131,118.37,118.35,8.4518]
[1743753908038,0.05351131,118.37,118.34,46.70163377]
[1743753908646,0.05351131,118.37,118.36,8.4511]
[1743753909045,0.05351131,118.37,118.34,46.70163377]
[1743753909240,0.05351131,118.37,118.34,31.9046435]
[1743753909640,8.4511,118.36,118.34,31.9046435]
[1743753910039,0.05351131,118.37,118.34,31.9046435]
[1743753910240,0.05351131,118.37,118.34,0.0646435]
[1743753911444,0.05351131,118.37,118.35,31.88]
[1743753911837,0.05351131,118.37,118.35,40.3316]
[1743753912033,0.05351131,118.37,118.35,31.88]
[1743753912246,0.05351131,118.37,118.36,8.4511]
[1743753912646,0.05351131,118.37,118.35,31.88]
[1743753913348,8.4518,118.35,118.34,0.0646435]
[1743753913842,0.05351131,118.37,118.34,0.0646435]
[1743753915747,8.4516,118.36,118.34,0.0646435]
[1743753915947,0.05351131,118.37,118.34,0.0646435]
[1743753916142,8.4511,118.36,118.34,0.0646435]
[1743753916347,0.05351131,118.37,118.34,0.0646435]
[1743753917048,8.4517,118.36,118.34,0.0646435]
[1743753917251,0.05351131,118.37,118.34,0.0646435]
[1743753917642,8.4518,118.35,118.34,0.0646435]
[1743753917845,2.1635,118.36,118.31,31.94]
[1743753918042,2.1635,118.36,118.29,284.9062239]
[1743753918246,8.454,118.32,118.29,316.8462239]
[1743753918450,2.3333,118.35,118.29,316.8462239]
[1743753918650,8.453,118.34,118.31,8.4545]
[1743753918952,8.5119342,118.34,118.31,8.51090819]
[1743753919153,0.0589342,118.34,118.32,8.4536]
[1743753919653,8.5115342,118.34,118.31,8.51060819]
[1743753920147,8.5115342,118.34,118.31,0.05640819]
[1743753920351,8.4533,118.33,118.31,0.05640819]
[1743753920852,8.5119342,118.34,118.31,0.05640819]
[1743753921153,0.0589342,118.34,118.31,0.05640819]
[1743753921355,8.5117342,118.34,118.31,8.51080819]
[1743753921759,8.454,118.32,118.31,0.05640819]
[1743753922152,2.2454342,118.34,118.31,0.05640819]
[1743753922958,8.4536,118.33,118.31,0.05640819]
[1743753923158,2.2454342,118.34,118.31,0.05640819]
[1743753924053,8.454,118.32,118.31,0.05640819]
[1743753925556,2.2454342,118.34,118.31,0.05640819]
[1743753927858,17.04242447,118.34,118.28,31.98]
[1743753928059,49.02242447,118.34,118.26,14.79699027]
[1743753928257,8.4558,118.3,118.27,40.4372]
[1743753928458,8.4558,118.3,118.27,31.98]
[1743753928860,8.4558,118.3,118.27,40.4372]
[1743753929057,0.05328065,118.3,118.27,40.49340461]
[1743753929762,0.05328065,118.3,118.27,32.03620461]
[1743753929958,0.05328065,118.3,118.27,32.01620461]
[1743753930158,14.85027092,118.3,118.27,0.05620461]
[1743753930359,14.79699027,118.28,118.25,341.88746868]
[1743753930863,8.4595,118.25,118.23,455.84995825]
[1743753931061,14.79699027,118.28,118.23,455.84995825]
[1743753931263,46.75699027,118.28,118.23,455.84995825]
[1743753931568,46.75699027,118.28,118.24,0.06062528]
[1743753931569,14.79699027,118.26,118.24,0.06062528]
[1743753931761,14.79699027,118.26,118.23,448.74475825]
[1743753932463,0.05733491,118.27,118.23,448.74475825]
[1743753932769,0.05733491,118.27,118.23,489.34505825]
[1743753932968,8.4594,118.25,118.24,0.05397665]
[1743753934166,8.4586,118.26,118.24,0.05397665]
[1743753934970,8.459,118.25,118.24,0.05397665]
[1743753936069,8.4587,118.26,118.24,0.05397665]
[1743753936368,0.05733491,118.27,118.24,0.05397665]
[1743753937365,8.459,118.25,118.24,0.05397665]
[1743753938466,8.4585,118.26,118.24,0.05397665]
[1743753938858,0.05733491,118.27,118.24,0.05397665]
[1743753939658,8.4583,118.26,118.24,0.05397665]
[1743753939859,0.05733491,118.27,118.24,0.05397665]
[1743753940767,8.4587,118.26,118.24,0.05397665]
[1743753941063,0.05733491,118.27,118.24,0.05397665]
[1743753941263,8.459,118.25,118.24,0.05397665]
[1743753944272,14.79699027,118.25,118.2,8.07]
[1743753944468,14.79699027,118.23,118.2,8.07]
[1743753944663,16.9021,118.37,118.21,46.97699027]
[1743753944868,14.79699027,118.35,118.27,14.79699027]
[1743753945073,14.79699027,118.35,118.28,32.18]
[1743753945374,0.25585037,118.3,118.28,32.18]
[1743753945569,0.05585037,118.3,118.27,0.0572199]
[1743753945770,8.4568,118.28,118.27,0.0572199]
[1743753947874,14.79699027,118.29,118.23,32.16]
[1743753948076,14.79699027,118.29,118.21,49.18549027]
[1743753948575,0.2,118.28,118.21,49.18549027]
[1743753948776,8.46,118.24,118.21,57.64669027]
[1743753948976,0.06186321,118.26,118.21,57.64669027]
[1743753949374,8.46,118.24,118.21,57.64669027]
[1743753949679,0.06186321,118.26,118.21,49.18549027]
[1743753949877,8.4604,118.23,118.21,49.18549027]
[1743753950077,8.4604,118.23,118.21,46.95699027]
[1743753950275,8.52025912,118.23,118.21,14.79699027]
[1743753950669,8.52025912,118.23,118.2,32.16]
[1743753951075,8.4611,118.22,118.19,23.25989027]
[1743753951276,8.4611,118.22,118.2,32.14]
[1743753951479,8.52065912,118.23,118.2,40.6025]
[1743753951679,8.52065912,118.23,118.2,32.14]
[1743753951983,0.05985912,118.23,118.2,32.14]
[1743753952569,8.4624,118.21,118.19,46.89699027]
[1743753953080,8.4624,118.21,118.19,46.87699027]
[1743753953481,8.4624,118.21,118.19,14.79699027]
[1743753953678,8.4624,118.21,118.19,46.87699027]
[1743753953874,8.4615,118.22,118.19,46.87699027]
[1743753954078,0.05985912,118.23,118.19,46.87699027]
[1743753954482,8.4622,118.21,118.19,46.87699027]
[1743753954680,14.85684939,118.23,118.16,40.14]
[1743753954875,14.79699027,118.23,118.16,40.14]
[1743753955077,8.4645,118.18,118.16,40.14]
[1743753955276,8.4645,118.18,118.16,32.04]
[1743753955583,8.5211828,118.18,118.16,32.04]
[1743753955783,0.0566828,118.18,118.15,32.02]
[1743753955980,0.0566828,118.18,118.13,14.79699027]
[1743753956186,14.79699027,118.17,118.03,503.9289]
[1743753956379,17.08879027,118.17,118.09,14.79699027]
[1743753956579,17.08879027,118.17,118.09,46.83699027]
[1743753956879,8.4676,118.13,118.09,46.83699027]
[1743753957083,0.06109836,118.14,118.09,46.83699027]
[1743753957683,8.52829836,118.14,118.09,55.30699027]
[1743753957884,8.52829836,118.14,118.09,46.83699027]
[1743753958079,0.06109836,118.14,118.09,46.83699027]
[1743753958280,0.06109836,118.14,118.1,8.4693]
[1743753958582,0.06109836,118.14,118.09,46.83699027]
[1743753959188,8.52829836,118.14,118.09,46.83699027]
[1743753959389,0.06109836,118.14,118.09,32.04]
[1743753959590,0.06109836,118.14,118.1,32.08]
[1743753959797,8.4684,118.12,118.1,32.08]
[1743753960186,8.4679,118.13,118.1,32.08]
[1743753960490,0.06109836,118.14,118.1,32.08]
[1743753960789,8.4684,118.12,118.1,32.08]
[1743753961192,0.06109836,118.14,118.1,32.08]
[1743753961486,0.06109836,118.14,118.08,32.06]
[1743753961891,0.06109836,118.14,118.07,22.87699027]
[1743753962093,0.06109836,118.14,118.08,32.04]
[1743753962586,1.47342126,118.21,118.1,14.79699027]
[1743753962795,2.2053,118.24,118.14,14.79699027]
[1743753962985,4.597,118.27,118.2,14.79699027]
[1743753963185,8.4595,118.25,118.21,32.2]
[1743753963688,8.4587,118.26,118.21,40.6615]
[1743753963889,0.06173617,118.24,118.22,0.06113115]
[1743753964290,0.06173617,118.24,118.22,8.52193115]
[1743753964691,0.06173617,118.24,118.22,0.06113115]
[1743753964888,0.06173617,118.24,118.23,8.4604]
[1743753965090,0.2,118.28,118.22,19.51462142]
[1743753965292,0.2,118.28,118.24,14.79699027]
[1743753965489,0.2,118.28,118.25,40.6588]
[1743753965993,8.4558,118.3,118.25,40.6588]
[1743753966189,0.06062352,118.28,118.25,32.26090025]
[1743753966394,0.06062352,118.28,118.25,55.96669372]
[1743753966697,0.06062352,118.28,118.26,8.4583]
[1743753967093,0.06062352,118.28,118.25,64.42549372]
[1743753967893,0.06062352,118.28,118.25,32.26090025]
[1743753968397,8.4583,118.26,118.25,0.06090025]
[1743753970503,8.4602,118.24,118.21,32.32]
[1743753970700,2.3095,118.27,118.21,32.32]
[1743753971000,8.4604,118.24,118.19,40.7832]
[1743753971199,2.3095,118.27,118.19,40.7832]
[1743753971401,32.32,118.26,118.19,40.7832]
[1743753971797,8.4608,118.23,118.21,0.06414968]
[1743753972000,0.05540275,118.24,118.21,0.06414968]
[1743753972402,8.4611,118.22,118.21,0.06414968]
[1743753972601,0.05540275,118.24,118.21,0.06414968]
[1743753973102,0.05540275,118.24,118.21,8.52564968]
[1743753973298,0.05540275,118.24,118.21,0.06414968]
[1743753974202,8.4611,118.22,118.21,0.06414968]
[1743753976098,40.9011,118.22,118.21,0.06414968]
[1743753978504,40.9011,118.22,118.18,8.08]
[1743753978505,8.4633,118.19,118.18,8.08]
[1743753978805,56.14579347,118.22,118.14,32.46]
[1743753979011,2.2501,118.21,118.14,32.46]
[1743753979707,8.52356107,118.19,118.14,32.46]
[1743753979905,0.05996107,118.19,118.14,32.46]
[1743753980314,8.4643,118.18,118.15,8.4658]
[1743753980605,8.4643,118.18,118.14,32.46]
[1743753981607,0.05996107,118.19,118.14,32.46]
[1743753981608,8.52356107,118.19,118.14,32.46]
[1743753981802,0.05996107,118.19,118.15,23.70579347]
[1743753982106,2.1891,118.24,118.17,32.16989347]
[1743753982308,2.1891,118.24,118.18,32.4]
[1743753982707,8.4644,118.18,118.16,39.0664]
[1743753983010,2.1891,118.24,118.16,39.0664]
[1743753983199,0.0610452,118.18,118.16,47.58971898]
[1743753983403,2.1891,118.24,118.16,47.5318]
[1743753983600,0.06320357,118.18,118.16,39.12974326]
[1743753983804,32.46,118.22,118.16,39.0664]
[1743753984005,32.46,118.22,118.16,39.13019208]
[1743753984006,0.0544864,118.18,118.16,39.13019208]
[1743753984406,0.0544864,118.18,118.16,6.71019208]
[1743753984705,0.0544864,118.18,118.16,0.06379208]
[1743753985013,8.5187864,118.18,118.16,0.06379208]
[1743753985205,0.0544864,118.18,118.16,0.06379208]
[1743753986404,8.5188864,118.18,118.16,0.06379208]
[1743753988011,0.0544864,118.18,118.16,0.06379208]
[1743753988801,8.5185864,118.18,118.16,0.06379208]
[1743753989001,0.0544864,118.18,118.16,0.06379208]
[1743753989911,8.5184864,118.18,118.16,0.06379208]
[1743753990307,0.0544864,118.18,118.16,0.06379208]
[1743753991009,0.0544864,118.18,118.17,8.4647]
[1743753991705,0.0544864,118.18,118.16,8.52879208]
[1743753991910,0.0544864,118.18,118.16,0.06379208]
[1743753992306,0.0544864,118.18,118.17,23.30930547]
[1743753992810,0.0544864,118.18,118.17,55.74930547]
[1743753993010,0.0544864,118.18,118.17,40.9047]
[1743753993211,0.0544864,118.18,118.17,32.44]
[1743753993715,0.0544864,118.18,118.16,0.06379208]
[1743753994018,8.5184864,118.18,118.16,0.06379208]
[1743753994410,0.0544864,118.18,118.16,8.52909208]
[1743753994820,0.0544864,118.18,118.16,0.06379208]
[1743753995716,0.0544864,118.18,118.16,8.52879208]
[1743753998323,0.0544864,118.18,118.17,8.4647]
[1743753999013,0.0544864,118.18,118.16,8.52879208]
[1743754000422,0.0544864,118.18,118.17,8.4647]
[1743754000625,0.0544864,118.18,118.16,0.06379208]
[1743754001124,0.0544864,118.18,118.17,8.4647]
[1743754001931,8.4621,118.21,118.18,8.4636]
[1743754002431,8.4621,118.21,118.18,40.7036]
[1743754002629,8.4626,118.2,118.18,32.24]
[1743754003227,8.51963747,118.2,118.18,32.30071639]
[1743754004332,8.4633,118.19,118.18,32.30071639]
[1743754004828,8.4633,118.19,118.18,0.06071639]
[1743754008327,14.90164294,118.2,118.13,14.84460547]
[1743754008528,14.84460547,118.2,118.13,14.84460547]
[1743754008733,32.08,118.19,118.13,14.84460547]
[1743754008927,32.08,118.19,118.13,23.31160547]
[1743754009437,8.4655,118.16,118.13,23.31160547]
[1743754009736,0.05407077,118.17,118.15,0.06162633]
[1743754010837,0.05407077,118.17,118.15,8.52742633]
[1743754011137,8.51907077,118.17,118.15,0.06162633]
[1743754011338,0.05407077,118.17,118.15,0.06162633]
[1743754011834,0.05407077,118.17,118.15,8.52752633]
[1743754012235,0.05407077,118.17,118.15,0.06162633]
[1743754012439,0.05407077,118.17,118.15,8.52742633]
[1743754013441,8.51887077,118.17,118.15,0.06162633]
[1743754014134,8.51887077,118.17,118.15,8.52772633]
[1743754014340,8.51887077,118.17,118.15,0.06162633]
[1743754014542,8.4654,118.16,118.15,0.06162633]
[1743754017340,0.05407077,118.17,118.15,0.06162633]
[1743754018241,8.51937077,118.17,118.15,0.06162633]
[1743754019844,8.4654,118.16,118.15,0.06162633]
[1743754021651,46.78460547,118.16,118.11,14.74]
[1743754022045,14.84460547,118.14,118.11,14.74]
[1743754022343,8.4683,118.12,118.11,14.74]
[1743754022545,14.84460547,118.14,118.1,17.53]
[1743754022739,8.4684,118.12,118.09,8.4704]
[1743754022944,0.06433058,118.13,118.09,8.4704]
[1743754023239,0.06433058,118.13,118.08,8.4707]
[1743754023447,8.4691,118.11,118.08,8.4707]
[1743754023637,31.98433058,118.13,118.06,51.24220547]
[1743754023841,31.92,118.13,118.07,8.4717]
[1743754024143,0.05966145,118.11,118.07,8.4717]
[1743754024337,0.05966145,118.11,118.08,8.471]
[1743754024644,0.05966145,118.11,118.06,51.24220547]
[1743754024845,0.05966145,118.11,118.08,8.4706]
[1743754025145,8.52866145,118.11,118.08,8.4706]
[1743754025339,0.05966145,118.11,118.06,51.24220547]
[1743754025544,0.05966145,118.11,118.09,8.4701]
[1743754026942,0.05966145,118.11,118.1,8.4697]
[1743754027540,3.6487,118.16,118.1,14.84460547]
[1743754027841,3.6487,118.16,118.09,31.86]
[1743754028044,8.4671,118.14,118.1,8.4694]
[1743754028244,8.4671,118.14,118.09,46.70460547]
[1743754028747,0.05786222,118.13,118.1,0.05551637]
[1743754028945,8.52556222,118.13,118.1,0.05551637]
[1743754029446,0.05786222,118.13,118.1,0.05551637]
[1743754029645,8.469,118.11,118.1,0.05551637]
[1743754031054,8.4683,118.12,118.1,0.05551637]
[1743754031244,31.87786222,118.13,118.1,0.05551637]
[1743754031445,8.469,118.11,118.1,0.05551637]
[1743754032348,8.4704,118.09,118.08,14.75]
[1743754032745,8.4704,118.09,118.04,31.8]
[1743754032951,8.4713,118.08,118.04,31.8]
[1743754033450,0.06453127,118.07,118.04,31.8]
[1743754033650,8.53643127,118.07,118.04,31.8]
[1743754033848,0.06453127,118.07,118.04,40.2737]
[1743754035250,0.06453127,118.07,118.04,31.8]
[1743754035554,0.06453127,118.07,118.05,14.84460547]
[1743754035860,2.1858,118.14,118.05,14.84460547]
[1743754036041,1.3,118.16,118.1,14.84460547]
[1743754036239,1.3,118.16,118.11,31.74]
[1743754036648,8.4669,118.14,118.11,40.2086]
[1743754037051,8.4676,118.13,118.11,31.79443625]
[1743754037750,8.5228071,118.14,118.11,40.26343625]
[1743754037951,0.0555071,118.14,118.11,40.26343625]
[1743754038154,0.0555071,118.14,118.12,8.4681]
[1743754039146,0.0555071,118.14,118.13,8.4676]
[1743754040947,0.0555071,118.14,118.12,8.468]
[1743754041152,0.0555071,118.14,118.11,46.63904172]
[1743754041751,0.0555071,118.14,118.12,8.468]
[1743754043553,0.0555071,118.14,118.13,8.4676]
[1743754043953,0.0555071,118.14,118.13,23.31220547]
[1743754052558,0.0555071,118.14,118.12,10.8031]
[1743754052754,0.0555071,118.14,118.12,8.468]
[1743754052949,0.0555071,118.14,118.12,40.148]
[1743754054055,0.0555071,118.14,118.12,8.468]
[1743754054255,0.0555071,118.14,118.12,31.68]
[1743754054957,0.0555071,118.14,118.11,14.89904172]
[1743754054958,8.5226071,118.14,118.11,14.89904172]
[1743754055153,8.5226071,118.14,118.11,46.57904172]
[1743754055352,0.0555071,118.14,118.11,40.20303625]
[1743754057154,0.0555071,118.14,118.11,31.73443625]
[1743754057360,0.0555071,118.14,118.11,0.05443625]
[1743754058858,8.5226071,118.14,118.11,0.05443625]
[1743754059059,0.0555071,118.14,118.11,0.05443625]
[1743754059255,8.4679,118.13,118.11,0.05443625]
[1743754059655,0.0555071,118.14,118.11,0.05443625]
[1743754060459,8.5224071,118.14,118.11,0.05443625]
[1743754060658,0.0555071,118.14,118.11,0.05443625]
[1743754060855,0.0555071,118.14,118.12,8.4682]
[1743754061056,0.0555071,118.14,118.11,14.89904172]
[1743754061457,0.0555071,118.14,118.13,8.4676]
[1743754061655,0.0555071,118.14,118.13,55.09220547]
[1743754062455,0.0555071,118.14,118.13,40.2476]
[1743754063763,0.0555071,118.14,118.13,31.78]
[1743754064157,0.0555071,118.14,118.13,46.62460547]
[1743754064460,0.0555071,118.14,118.13,55.09220547]
[1743754066463,0.0555071,118.14,118.11,31.79443625]
[1743754066964,0.0555071,118.14,118.12,8.468]
[1743754067464,0.0555071,118.14,118.13,8.4676]
[1743754067864,0.0555071,118.14,118.11,0.05443625]
[1743754068359,0.0555071,118.14,118.12,14.84460547]
[1743754068665,0.0555071,118.14,118.13,40.3476]
[1743754069668,0.2,118.16,118.15,8.4661]
[1743754069868,0.2,118.16,118.15,23.31070547]
[1743754074165,0.05377454,118.17,118.15,23.31070547]
[1743754074166,0.05377454,118.17,118.16,8.4654]
[1743754074364,0.05377454,118.17,118.16,40.2854]
[1743754076567,0.05377454,118.17,118.16,31.82]
[1743754077163,0.05377454,118.17,118.16,8.4646]
[1743754077663,0.05377454,118.17,118.16,9.49745863]
[1743754079766,0.05377454,118.17,118.16,17.96205863]
[1743754080371,0.05377454,118.17,118.16,9.49745863]
[1743754082470,0.05377454,118.17,118.15,9.49745863]
[1743754082967,0.05377454,118.17,118.15,17.96265863]
[1743754083167,0.05377454,118.17,118.15,9.49745863]
[1743754083770,0.05377454,118.17,118.15,31.68]
[1743754084070,0.05377454,118.17,118.15,41.17745863]
[1743754084268,0.05377454,118.17,118.16,9.49745863]
[1743754084461,0.05377454,118.17,118.16,17.96205863]
[1743754084662,0.05377454,118.17,118.16,9.49745863]
[1743754084862,0.05377454,118.17,118.15,41.17745863]
[1743754085067,0.05377454,118.17,118.14,9.55309125]
[1743754085266,0.05377454,118.17,118.14,41.23309125]
[1743754085570,8.51807454,118.17,118.14,41.23309125]
[1743754086073,0.05377454,118.17,118.15,17.96245863]
[1743754086372,0.05377454,118.17,118.14,31.73563262]
[1743754086569,0.05377454,118.17,118.15,9.49745863]
[1743754087175,0.05377454,118.17,118.16,9.49745863]
[1743754088376,0.05377454,118.17,118.16,17.96205863]
[1743754088667,1.3,118.19,118.16,9.49745863]
[1743754088868,2.22,118.27,118.18,9.49745863]
[1743754089171,2.22,118.27,118.23,9.49745863]
[1743754089371,49.1116711,118.28,118.24,31.68]
[1743754089573,8.4578,118.26,118.24,31.68]
[1743754089777,8.4578,118.26,118.25,0.05511103]
[1743754090669,14.82400065,118.26,118.21,31.68]
[1743754091065,14.82400065,118.26,118.17,14.82400065]
[1743754091270,14.82400065,118.26,118.18,31.68]
[1743754091471,14.82400065,118.24,118.17,14.82400065]
[1743754091775,8.4623,118.2,118.19,0.05868401]
[1743754092678,0.05668328,118.22,118.19,0.05868401]
[1743754093071,0.05668328,118.22,118.19,14.78868401]